bitfinex-derivatives/quotes_BTCF0:USTF0_20250508
["timestamp","ask_amount","ask_price","bid_price","bid_amount"]
[1746716585215,0.48927543,99504.0,99503.0,0.3071688]
[1746716585616,0.3618,99504.0,99503.0,0.3071688]
[1746716586205,0.3618,99504.0,99503.0,0.4751688]
[1746716586614,0.3608,99504.0,99503.0,0.4741688]
[1746716586914,0.3618,99504.0,99503.0,0.4751688]
[1746716587315,0.3618,99504.0,99503.0,0.4741688]
[1746716587518,0.3618,99504.0,99503.0,0.4751688]
[1746716588114,0.60948867,99504.0,99503.0,0.0552]
[1746716588518,0.60948867,99504.0,99503.0,0.002]
[1746716590828,0.2009688,99503.0,99502.0,0.0533]
[1746716591021,0.35259077,99503.0,99502.0,0.0533]
[1746716591722,0.2009849,99495.0,99494.0,0.3144269]
[1746716591921,0.60850687,99495.0,99494.0,0.3144269]
[1746716592722,0.60850687,99495.0,99494.0,0.11344]
[1746716592926,0.65910687,99495.0,99494.0,0.11344]
[1746716593229,0.71230687,99495.0,99494.0,0.3144269]
[1746716593426,0.71330687,99495.0,99494.0,0.11544]
[1746716594721,0.71330687,99495.0,99494.0,0.11744]
[1746716596824,0.71330687,99495.0,99494.0,0.3184269]
[1746716597619,0.71330687,99495.0,99494.0,0.11744]
[1746716597926,0.71330687,99495.0,99494.0,0.004]
[1746716598125,0.71330687,99495.0,99463.0,0.11348]
[1746716598126,0.2010092,99483.0,99463.0,0.11348]
[1746716598430,0.2010092,99483.0,99482.0,0.0020104]
[1746716598431,0.60853117,99483.0,99482.0,0.0020104]
[1746716598629,0.70905118,99483.0,99482.0,0.0020104]
[1746716598928,0.2010172,99479.0,99463.0,0.11348]
[1746716599131,0.60853917,99479.0,99464.0,0.0542]
[1746716599319,0.70906317,99479.0,99464.0,0.0542]
[1746716599519,0.70906317,99479.0,99472.0,0.00735183]
[1746716599824,0.81176317,99479.0,99472.0,0.00735183]
[1746716600028,0.81176317,99479.0,99464.0,0.0542]
[1746716600330,0.2010375,99469.0,99448.0,0.20266757]
[1746716600527,0.60855947,99469.0,99458.0,0.0542]
[1746716601121,0.0502628,99463.0,99453.0,0.0010055]
[1746716601428,0.60858977,99454.0,99453.0,0.0010055]
[1746716601620,0.60858977,99454.0,99453.0,0.0507055]
[1746716602228,0.71188977,99454.0,99453.0,0.0507055]
[1746716602424,1.21288977,99454.0,99453.0,0.05837422]
[1746716603026,0.2010698,99453.0,99452.0,1e-08]
[1746716603230,0.2010779,99449.0,99448.0,0.15239777]
[1746716603531,0.24779987,99449.0,99448.0,0.11383537]
[1746716603732,0.24779987,99449.0,99417.0,0.0525]
[1746716603733,0.2011183,99429.0,99417.0,0.0525]
[1746716604030,0.60864027,99429.0,99403.0,0.15420527]
[1746716604330,0.2011305,99423.0,99414.0,0.049]
[1746716604529,0.34843247,99423.0,99414.0,0.049]
[1746716604826,0.34843247,99423.0,99403.0,0.15420527]
[1746716605026,0.34843247,99423.0,99407.0,0.049]
[1746716605226,0.51643247,99423.0,99407.0,0.049]
[1746716605428,0.168,99423.0,99422.0,0.20314412]
[1746716606137,0.001,99423.0,99422.0,0.37114412]
[1746716606333,0.001,99423.0,99422.0,0.47294412]
[1746716607321,0.001,99423.0,99422.0,0.47394412]
[1746716608142,0.2021305,99423.0,99422.0,0.47394412]
[1746716608433,0.5619305,99423.0,99422.0,0.47394412]
[1746716608636,0.2021305,99423.0,99422.0,0.47394412]
[1746716609138,0.2021305,99423.0,99422.0,0.30594412]
[1746716609337,0.60965247,99423.0,99422.0,0.05201162]
[1746716609534,0.70685247,99423.0,99422.0,0.05201162]
[1746716610533,0.3618,99423.0,99422.0,0.25314412]
[1746716610733,0.501,99423.0,99422.0,0.25314412]
[1746716611143,0.7021305,99423.0,99422.0,0.42114412]
[1746716611440,0.501,99423.0,99422.0,0.46964412]
[1746716612336,0.501,99423.0,99422.0,1.08044412]
[1746716612637,0.0482,99449.0,99442.0,0.201092]
[1746716612832,0.3608,99452.0,99442.0,0.201092]
[1746716613141,0.3608,99452.0,99442.0,0.369092]
[1746716613142,0.40752197,99443.0,99442.0,0.369092]
[1746716613537,0.40752197,99443.0,99442.0,0.468292]
[1746716613840,0.90752197,99443.0,99442.0,0.468292]
[1746716614042,0.91052197,99443.0,99442.0,0.469292]
[1746716614350,1.11161197,99443.0,99442.0,0.169]
[1746716614641,1.11561197,99443.0,99442.0,0.169]
[1746716614840,0.91452197,99443.0,99442.0,0.370092]
[1746716615427,1.11161197,99443.0,99442.0,0.370092]
[1746716615632,1.11561197,99443.0,99442.0,0.421492]
[1746716616441,0.91452197,99443.0,99442.0,0.421492]
[1746716617138,0.8678,99443.0,99442.0,0.421492]
[1746716617444,0.507,99443.0,99442.0,0.421492]
[1746716617841,0.503,99443.0,99442.0,0.421492]
[1746716618036,0.507,99443.0,99442.0,0.421492]
[1746716618436,0.007,99443.0,99442.0,0.421492]
[1746716619839,0.20809,99443.0,99442.0,0.2204]
[1746716620047,0.20809,99443.0,99442.0,0.421492]
[1746716620341,0.25481197,99443.0,99442.0,0.2204]
[1746716621146,0.30511197,99443.0,99442.0,0.0524]
[1746716621535,0.30511197,99443.0,99442.0,0.001]
[1746716621944,0.80511197,99443.0,99442.0,0.001]
[1746716623133,0.80511197,99443.0,99442.0,0.01662769]
[1746716623950,0.80511197,99443.0,99442.0,0.001]
[1746716624148,0.507,99443.0,99442.0,0.254692]
[1746716624349,0.507,99443.0,99442.0,0.28541259]
[1746716625048,0.8678,99443.0,99442.0,0.33371259]
[1746716625348,0.8678,99443.0,99442.0,0.48639521]
[1746716625547,0.3678,99443.0,99442.0,0.48639521]
[1746716625749,0.3678,99443.0,99442.0,0.470992]
[1746716625939,0.007,99443.0,99442.0,0.470992]
[1746716629356,0.20809,99443.0,99442.0,0.47300322]
[1746716629544,0.007,99443.0,99442.0,0.47300322]
[1746716629746,0.20809,99443.0,99442.0,0.47300322]
[1746716629950,0.0585,99443.0,99442.0,0.47300322]
[1746716630254,0.0585,99443.0,99442.0,0.48820224]
[1746716630952,0.20809,99443.0,99442.0,0.27191122]
[1746716631150,0.25481197,99443.0,99442.0,0.17101122]
[1746716631353,0.62287198,99443.0,99442.0,0.00301122]
[1746716631854,0.62287198,99443.0,99442.0,0.20410322]
[1746716632050,0.52231197,99443.0,99442.0,0.00301122]
[1746716632251,0.507,99443.0,99442.0,0.21942594]
[1746716632842,0.507,99443.0,99442.0,0.31998594]
[1746716633048,0.507,99443.0,99442.0,0.42278594]
[1746716633250,0.507,99443.0,99442.0,0.57546322]
[1746716633547,0.007,99443.0,99442.0,0.59076241]
[1746716634057,0.007,99443.0,99442.0,0.60236241]
[1746716634950,0.007,99443.0,99442.0,0.61777225]
[1746716635157,0.20809,99443.0,99442.0,0.33761225]
[1746716635352,0.25481197,99443.0,99442.0,0.08402025]
[1746716635553,0.25481197,99443.0,99442.0,0.28511225]
[1746716636257,0.15032197,99443.0,99442.0,0.28511225]
[1746716636858,0.35141197,99443.0,99442.0,0.28511225]
[1746716637062,0.15032197,99443.0,99442.0,0.28511225]
[1746716637349,0.10282197,99443.0,99442.0,0.50511225]
[1746716637559,0.007,99443.0,99442.0,0.50511225]
[1746716638357,0.007,99443.0,99442.0,0.64511225]
[1746716638857,0.05372197,99443.0,99442.0,0.64552968]
[1746716639045,0.25481197,99443.0,99442.0,0.39243768]
[1746716639245,0.25481197,99443.0,99442.0,0.25243768]
[1746716639450,0.25481197,99443.0,99442.0,0.20213768]
[1746716639650,0.35301197,99443.0,99442.0,0.20213768]
[1746716639847,0.35301197,99443.0,99442.0,0.18642106]
[1746716640158,0.35301197,99443.0,99442.0,0.01842106]
[1746716640345,0.45357198,99443.0,99442.0,0.01842106]
[1746716640745,1.31437198,99443.0,99442.0,0.01842106]
[1746716641056,1.48237198,99443.0,99442.0,0.01842106]
[1746716641451,0.2011224,99427.0,99426.0,0.11216]
[1746716641651,0.24784437,99427.0,99426.0,0.32871659]
[1746716642047,0.34784437,99427.0,99426.0,0.32871659]
[1746716642547,0.84784437,99427.0,99426.0,0.12759219]
[1746716643058,0.84884437,99427.0,99426.0,0.32871659]
[1746716643960,0.84884437,99427.0,99426.0,0.21655659]
[1746716644361,0.64772197,99427.0,99426.0,0.21655659]
[1746716644859,0.84884437,99427.0,99426.0,0.21655659]
[1746716645360,0.84884437,99427.0,99426.0,0.01543219]
[1746716645564,0.2011305,99423.0,99422.0,0.00201162]
[1746716645755,0.60865247,99423.0,99422.0,0.00201162]
[1746716646357,0.40752197,99423.0,99422.0,0.00201162]
[1746716646567,0.60865247,99423.0,99422.0,0.20314412]
[1746716646860,0.60865247,99423.0,99422.0,0.00201162]
[1746716647161,1.13745247,99423.0,99422.0,0.00201162]
[1746716647463,1.63945247,99423.0,99422.0,0.00201162]
[1746716648166,1.47145247,99423.0,99422.0,0.00201162]
[1746716649051,1.63945247,99423.0,99422.0,0.00201162]
[1746716649256,1.64145247,99423.0,99422.0,0.00201162]
[1746716649664,0.2011568,99410.0,99407.0,0.0515]
[1746716649863,0.60867877,99410.0,99407.0,0.0515]
[1746716650053,0.60867877,99410.0,99403.0,0.001006]
[1746716650659,0.60867877,99410.0,99409.0,0.0089002]
[1746716650960,0.60867877,99410.0,99409.0,0.00739141]
[1746716651162,0.2514605,99406.0,99405.0,0.2011663]
[1746716651562,0.2011689,99404.0,99403.0,0.2021762]
[1746716651959,0.2011689,99404.0,99403.0,0.2543762]
[1746716652159,0.2011689,99404.0,99403.0,0.2021762]
[1746716652566,0.0517,99405.0,99404.0,0.2011689]
[1746716652767,0.2011639,99407.0,99406.0,0.2011649]
[1746716653068,0.2503639,99407.0,99406.0,0.3691649]
[1746716653272,0.2985639,99407.0,99406.0,0.3691649]
[1746716653567,0.2985639,99407.0,99406.0,0.19113664]
[1746716653955,0.6593639,99407.0,99406.0,0.19113664]
[1746716654161,0.70708587,99407.0,99406.0,0.02313664]
[1746716654368,0.70708587,99407.0,99406.0,0.01560413]
[1746716654667,0.2011912,99393.0,99387.0,0.2012026]
[1746716654871,0.5619912,99393.0,99386.0,0.0508]
[1746716655371,0.5619912,99393.0,99392.0,0.00951147]
[1746716655666,0.2012134,99382.0,99372.0,0.0503079]
[1746716655867,0.24793537,99382.0,99373.0,0.0492]
[1746716656068,0.24793537,99382.0,99381.0,0.4814155]
[1746716656467,0.35133537,99382.0,99381.0,0.4814155]
[1746716656860,0.35233537,99382.0,99381.0,0.48911323]
[1746716657062,0.35333537,99382.0,99381.0,0.49511323]
[1746716657859,0.002,99382.0,99381.0,0.8691138]
[1746716658556,0.3608,99406.0,99400.0,0.201177]
[1746716658762,0.2011696,99404.0,99403.0,0.2011709]
[1746716658957,0.3608,99406.0,99405.0,0.2011669]
[1746716658958,0.5619655,99406.0,99405.0,0.2011669]
[1746716659260,0.3608,99406.0,99405.0,0.3691669]
[1746716660362,0.5619649,99406.0,99405.0,0.3691669]
[1746716660672,0.3638,99406.0,99405.0,0.3701669]
[1746716662465,0.3638,99406.0,99405.0,0.3711669]
[1746716662657,0.001,99406.0,99405.0,0.3711669]
[1746716663064,0.001,99406.0,99405.0,0.4826069]
[1746716663269,0.001,99406.0,99405.0,0.4806069]
[1746716663473,0.002,99406.0,99405.0,0.4816069]
[1746716663773,0.001,99406.0,99405.0,0.4826069]
[1746716664070,0.2011557,99411.0,99410.0,0.2514415]
[1746716664271,0.04672197,99411.0,99410.0,0.3000415]
[1746716664569,0.2011484,99415.0,99414.0,0.2011487]
[1746716664774,0.2011434,99417.0,99416.0,0.2011446]
[1746716665171,0.04672197,99417.0,99416.0,0.3691446]
[1746716665473,0.5,99417.0,99416.0,0.4697326]
[1746716665674,0.5,99417.0,99416.0,0.5222326]
[1746716666179,0.502,99417.0,99416.0,0.5222326]
[1746716666472,0.503,99417.0,99416.0,0.5222326]
[1746716666672,0.003,99417.0,99416.0,0.6622326]
[1746716667176,0.002,99417.0,99416.0,0.6622326]
[1746716668377,0.05630689,99424.0,99420.0,0.0502837]
[1746716668582,9e-08,99424.0,99423.0,0.5619305]
[1746716668771,9e-08,99424.0,99423.0,0.6885208]
[1746716668971,9e-08,99424.0,99423.0,0.7891008]
[1746716669178,9e-08,99424.0,99423.0,1.0971008]
[1746716669474,0.00100009,99424.0,99423.0,1.0971008]
[1746716669682,0.10206375,99430.0,99429.0,0.2011183]
[1746716669872,0.10206375,99430.0,99429.0,0.2162686]
[1746716669873,0.06745715,99430.0,99429.0,0.2162686]
[1746716670074,0.06745715,99430.0,99429.0,0.3168406]
[1746716670274,0.02473685,99430.0,99429.0,0.5337406]
[1746716670578,0.001,99449.0,99446.0,0.2010839]
[1746716670579,0.00251,99447.0,99446.0,0.2010839]
[1746716670773,0.00251,99447.0,99446.0,0.68889905]
[1746716671179,0.00251,99447.0,99446.0,0.95799905]
[1746716671378,0.001,99449.0,99448.0,0.2010799]
[1746716671578,0.001,99449.0,99448.0,0.21666807]
[1746716672082,0.001,99449.0,99448.0,0.38466807]
[1746716672474,0.008,99449.0,99448.0,0.38566807]
[1746716672674,0.008,99449.0,99448.0,0.3700799]
[1746716672982,0.008,99449.0,99448.0,0.38310232]
[1746716673374,0.008,99449.0,99448.0,0.3987009]
[1746716673575,0.014,99449.0,99448.0,0.40711108]
[1746716675384,0.2150779,99449.0,99448.0,0.20603118]
[1746716675584,0.014,99449.0,99448.0,0.40711108]
[1746716675785,0.014,99449.0,99448.0,0.3915125]
[1746716675986,0.2150779,99449.0,99448.0,0.3915125]
[1746716677285,0.26179987,99449.0,99448.0,0.3915125]
[1746716678382,0.06072197,99449.0,99448.0,0.3915125]
[1746716678781,0.014,99449.0,99448.0,0.7523125]
[1746716679090,0.014,99449.0,99448.0,0.3915125]
[1746716679584,0.014,99449.0,99448.0,0.4954125]
[1746716680581,0.014,99449.0,99448.0,0.4424125]
[1746716681088,0.36569987,99449.0,99448.0,0.4424125]
[1746716681984,0.16462197,99449.0,99448.0,0.4424125]
[1746716682184,0.11232197,99449.0,99448.0,0.4424125]
[1746716682688,0.11232197,99449.0,99448.0,0.4945125]
[1746716682988,0.11232197,99449.0,99448.0,0.4424125]
[1746716683386,0.31339987,99449.0,99448.0,0.17741018]
[1746716683984,0.81339987,99449.0,99448.0,0.1905263]
[1746716684180,0.81339987,99449.0,99448.0,0.0225263]
[1746716685387,0.81339987,99449.0,99448.0,0.00941018]
[1746716685685,0.91395587,99449.0,99448.0,0.002]
[1746716685877,0.2514119,99426.0,99425.0,0.2011237]
[1746716686186,0.65893387,99426.0,99425.0,0.2011237]
[1746716686383,0.04672197,99426.0,99425.0,0.21418844]
[1746716686583,0.04672197,99426.0,99425.0,0.26618844]
[1746716687085,0.04972197,99426.0,99425.0,0.43418844]
[1746716687791,0.25084637,99426.0,99425.0,0.43418844]
[1746716687987,0.25284637,99426.0,99425.0,0.43418844]
[1746716688587,0.25284637,99426.0,99425.0,0.44189348]
[1746716688991,0.25284637,99426.0,99425.0,0.18876978]
[1746716689188,0.25284637,99426.0,99425.0,0.02076978]
[1746716689492,0.2011264,99425.0,99424.0,0.1114]
[1746716689690,0.34834837,99425.0,99424.0,0.1188727]
[1746716690087,0.34834837,99425.0,99424.0,0.0074727]
[1746716690284,0.2011588,99409.0,99408.0,0.1114]
[1746716690789,0.1485,99410.0,99409.0,0.2011588]
[1746716691186,0.3608,99418.0,99416.0,0.2011426]
[1746716691494,0.1005,99417.0,99416.0,0.20860598]
[1746716691694,0.0512,99417.0,99416.0,0.20860598]
[1746716691889,0.0512,99417.0,99416.0,0.22144894]
[1746716692093,0.0512,99417.0,99416.0,0.38944894]
[1746716692286,0.2523426,99417.0,99416.0,0.38944894]
[1746716692685,0.2533426,99417.0,99416.0,0.39044894]
[1746716693389,0.3078426,99417.0,99416.0,0.18930434]
[1746716693594,0.35456457,99417.0,99416.0,0.18930434]
[1746716694298,0.35456457,99417.0,99416.0,0.02130434]
[1746716694690,0.35456457,99417.0,99416.0,0.00846138]
[1746716695793,0.35456457,99417.0,99416.0,0.001]
[1746716695994,0.85456457,99417.0,99416.0,0.001]
[1746716696294,1.02256457,99417.0,99416.0,0.001]
[1746716697200,0.85456457,99417.0,99416.0,0.001]
[1746716701803,0.65342197,99417.0,99416.0,0.001]
[1746716701993,0.85456457,99417.0,99416.0,0.2021446]
[1746716702192,0.85456457,99417.0,99416.0,0.001]
[1746716703698,0.2011649,99406.0,99390.0,0.11064]
[1746716703892,0.60868687,99406.0,99396.0,0.2011849]
[1746716704098,0.60868687,99406.0,99394.0,0.2011875]
[1746716704398,0.60868687,99406.0,99394.0,0.0502972]
[1746716704709,0.60868687,99406.0,99405.0,0.03755]
[1746716705007,0.2011912,99393.0,99392.0,0.00201222]
[1746716705301,0.60871317,99393.0,99392.0,0.00201222]
[1746716705999,0.71191317,99393.0,99392.0,0.00201222]
[1746716706296,0.71291317,99393.0,99392.0,0.02022662]
[1746716706703,0.71491317,99393.0,99392.0,0.01722662]
[1746716706897,1.21591317,99393.0,99392.0,0.01722662]
[1746716707701,1.21791317,99393.0,99392.0,0.01722662]
[1746716708098,1.21791317,99393.0,99392.0,0.00201222]
[1746716709001,0.506,99393.0,99392.0,0.20320542]
[1746716709202,0.506,99393.0,99392.0,0.72181742]
[1746716709404,0.12793109,99413.0,99412.0,0.2011527]
[1746716709605,0.104,99436.0,99422.0,0.2011325]
[1746716709802,0.3608,99440.0,99422.0,0.5719325]
[1746716710002,0.0502785,99432.0,99422.0,0.5719325]
[1746716710208,0.0515,99438.0,99422.0,0.7399325]
[1746716710509,0.2011049,99436.0,99422.0,1.10270209]
[1746716710905,0.0515,99438.0,99422.0,1.10270209]
[1746716711105,0.3608,99440.0,99422.0,1.10270209]
[1746716711305,0.14060403,99460.0,99422.0,1.10270209]
[1746716711306,0.07925131,99423.0,99422.0,1.10270209]
[1746716711700,0.08625131,99423.0,99422.0,1.10370209]
[1746716712107,0.08625131,99423.0,99422.0,0.85370209]
[1746716712307,0.08025131,99423.0,99422.0,0.85270209]
[1746716713004,0.07325131,99423.0,99422.0,1.10270209]
[1746716713204,0.002,99423.0,99422.0,1.15250209]
[1746716714200,0.001,99449.0,99428.0,0.0502798]
[1746716714400,0.001,99449.0,99448.0,0.5618799]
[1746716714603,0.001,99474.0,99452.0,0.2010718]
[1746716714801,0.001,99474.0,99473.0,0.2010294]
[1746716715112,0.001,99474.0,99473.0,0.9858391]
[1746716715312,8e-08,99482.0,99481.0,0.2010132]
[1746716715610,0.01775194,99484.0,99483.0,0.2010092]
[1746716715805,0.01775194,99484.0,99483.0,0.21621871]
[1746716716112,0.01775194,99484.0,99483.0,0.31673871]
[1746716716309,0.01775194,99484.0,99483.0,0.58563871]
[1746716716610,0.01775194,99484.0,99483.0,0.58580535]
[1746716717107,0.01775194,99484.0,99483.0,0.5704292]
[1746716717303,0.01775194,99484.0,99483.0,0.6810692]
[1746716717501,0.005,99484.0,99483.0,0.6820692]
[1746716717705,1e-07,99484.0,99483.0,0.6820692]
[1746716717913,1e-07,99484.0,99483.0,0.69710795]
[1746716718503,1e-07,99484.0,99483.0,0.69710122]
[1746716719008,1e-07,99484.0,99483.0,0.6820692]
[1746716720813,1e-07,99484.0,99483.0,1.4036692]
[1746716721008,1e-07,99484.0,99483.0,1.59901282]
[1746716721404,1e-07,99484.0,99483.0,1.5836692]
[1746716722613,1e-07,99484.0,99483.0,1.7736692]
[1746716722811,1e-07,99484.0,99483.0,1.5736692]
[1746716723215,1e-07,99484.0,99483.0,1.7636692]
[1746716724406,0.05687655,99500.0,99499.0,0.2009768]
[1746716724608,0.01590226,99500.0,99499.0,1.3330808]
[1746716724910,6e-08,99500.0,99499.0,1.3430808]
[1746716725110,6e-08,99500.0,99499.0,1.6143808]
[1746716725809,0.00400006,99500.0,99499.0,1.6153808]
[1746716726311,0.00900006,99500.0,99499.0,1.6163808]
[1746716728610,6e-08,99500.0,99499.0,1.6163808]
[1746716729814,6e-08,99500.0,99499.0,1.2058768]
[1746716730010,6e-08,99500.0,99499.0,0.8450768]
[1746716730210,0.49769683,99500.0,99499.0,0.17]
[1746716730415,0.200995,99490.0,99489.0,0.10972]
[1746716730603,0.561795,99490.0,99489.0,0.10972]
[1746716730805,0.0502495,99489.0,99478.0,0.0502547]
[1746716731010,0.2010205,99479.0,99478.0,0.251268]
[1746716731711,0.2010253,99475.0,99474.0,0.10972]
[1746716731909,0.2010253,99475.0,99474.0,0.3107473]
[1746716732105,0.4510253,99475.0,99474.0,0.3107473]
[1746716732417,0.0996551,99478.0,99477.0,0.2010213]
[1746716732418,0.2504193,99478.0,99477.0,0.2010213]
[1746716732618,0.2010253,99476.0,99475.0,0.2010244]
[1746716733121,0.3008253,99476.0,99475.0,0.2010244]
[1746716733727,0.2010253,99475.0,99474.0,0.10972]
[1746716734120,0.2010253,99475.0,99473.0,0.00746976]
[1746716734121,0.0502602,99468.0,99459.0,0.10972]
[1746716734415,0.2010476,99464.0,99459.0,0.10972]
[1746716734623,0.2010476,99464.0,99463.0,0.56929956]
[1746716734918,0.2010445,99466.0,99465.0,0.2010435]
[1746716735115,0.1021,99466.0,99465.0,0.2010435]
[1746716736521,0.1021,99466.0,99465.0,0.5618435]
[1746716736706,0.001,99466.0,99465.0,0.6663795]
[1746716736913,0.3608,99487.0,99486.0,0.2010031]
[1746716737118,0.0499,99498.0,99497.0,0.2009809]
[1746716737313,0.0499,99498.0,99497.0,0.5617809]
[1746716737913,0.0499,99498.0,99497.0,0.58748692]
[1746716738213,0.0499,99498.0,99497.0,0.75548692]
[1746716738912,0.2508789,99498.0,99497.0,0.75548692]
[1746716739117,0.0529,99498.0,99497.0,0.57748692]
[1746716739319,0.0559,99498.0,99497.0,0.57748692]
[1746716739822,0.0499,99498.0,99497.0,0.57948692]
[1746716740021,0.0499,99498.0,99497.0,0.58048692]
[1746716741915,0.2508789,99498.0,99497.0,0.58048692]
[1746716742117,0.3008789,99498.0,99497.0,0.01870712]
[1746716742427,0.0999,99498.0,99497.0,0.32940802]
[1746716742821,0.0999,99498.0,99497.0,0.32740802]
[1746716743021,0.1009,99498.0,99497.0,0.33340802]
[1746716743319,0.00251,99509.0,99504.0,0.2009667]
[1746716743514,0.052,99529.0,99512.0,0.2009506]
[1746716743710,0.0526,99523.0,99512.0,0.57745772]
[1746716743924,0.0526,99523.0,99512.0,0.31955772]
[1746716744131,0.0526,99523.0,99512.0,0.49755772]
[1746716744722,0.2535291,99523.0,99512.0,0.44575772]
[1746716744923,0.0526,99523.0,99512.0,0.44575772]
[1746716745224,0.200933,99521.0,99512.0,0.44575772]
[1746716745526,0.0502355,99517.0,99512.0,0.44975772]
[1746716745723,0.2029486,99513.0,99512.0,0.19770712]
[1746716745928,0.5637486,99513.0,99512.0,0.19070712]
[1746716746226,0.7317486,99513.0,99512.0,0.02270712]
[1746716747019,0.8322366,99513.0,99512.0,0.007]
[1746716747221,0.8840366,99513.0,99512.0,0.007]
[1746716747720,0.7835486,99513.0,99512.0,0.004]
[1746716747920,0.7835486,99513.0,99512.0,0.2049506]
[1746716748117,0.2547486,99513.0,99512.0,0.22030261]
[1746716748322,0.0538,99513.0,99512.0,0.22030261]
[1746716748520,0.0538,99513.0,99512.0,0.21930261]
[1746716748914,0.2547486,99513.0,99512.0,0.22930261]
[1746716749129,0.6685486,99513.0,99512.0,0.22630261]
[1746716749328,0.6685486,99513.0,99512.0,0.23131241]
[1746716749726,0.6685486,99513.0,99512.0,0.23125497]
[1746716750024,0.4676,99513.0,99512.0,0.2159604]
[1746716750222,0.4676,99513.0,99512.0,0.2189604]
[1746716751321,0.6685486,99513.0,99512.0,0.2189604]
[1746716751723,0.6685486,99513.0,99512.0,0.2159604]
[1746716751921,0.6685486,99513.0,99512.0,0.2169604]
[1746716752131,0.6685486,99513.0,99512.0,0.2149604]
[1746716752325,0.6685486,99513.0,99512.0,0.0140098]
[1746716752529,0.6685486,99513.0,99512.0,0.2049604]
[1746716752826,0.6685486,99513.0,99512.0,0.0040098]
[1746716753236,0.8365486,99513.0,99512.0,0.0040098]
[1746716753532,0.8365486,99513.0,99512.0,0.0030098]
[1746716753728,0.8365486,99513.0,99512.0,0.0040098]
[1746716753919,0.8365486,99513.0,99512.0,0.0050098]
[1746716754122,1.3365486,99513.0,99512.0,0.0050098]
[1746716754630,1.1356,99513.0,99512.0,0.2059604]
[1746716754931,1.0826,99513.0,99512.0,0.2059604]
[1746716755123,0.9146,99513.0,99512.0,0.2039604]
[1746716755524,0.4146,99513.0,99512.0,0.3069604]
[1746716755724,0.6165486,99513.0,99512.0,0.3069604]
[1746716756128,0.6155486,99513.0,99512.0,0.3069604]
[1746716756328,0.4146,99513.0,99512.0,0.3079604]
[1746716756631,0.6155486,99513.0,99512.0,0.3079604]
[1746716756822,0.4146,99513.0,99512.0,0.3089604]
[1746716757025,0.4146,99513.0,99512.0,0.3099604]
[1746716757222,0.3628,99513.0,99512.0,0.4779604]
[1746716757730,0.3628,99513.0,99512.0,0.4789604]
[1746716758031,0.3628,99513.0,99512.0,0.4940752]
[1746716758630,0.3628,99513.0,99512.0,0.4930752]
[1746716758831,0.3628,99513.0,99512.0,0.4910752]
[1746716759140,0.3628,99513.0,99512.0,0.4930752]
[1746716759428,0.3628,99513.0,99512.0,0.49116915]
[1746716759629,0.3628,99513.0,99512.0,0.49316915]
[1746716760431,0.002,99513.0,99512.0,0.49216915]
[1746716760632,0.002,99513.0,99512.0,0.49316915]
[1746716760932,0.002,99513.0,99512.0,0.49511515]
[1746716761324,0.002,99513.0,99512.0,0.50511515]
[1746716762233,0.002,99513.0,99512.0,0.50311515]
[1746716762432,0.002,99513.0,99512.0,0.50511515]
[1746716762825,0.002,99513.0,99512.0,0.50311515]
[1746716763031,0.002,99513.0,99512.0,0.50611515]
[1746716763333,0.002,99513.0,99512.0,0.50711515]
[1746716763631,0.002,99513.0,99512.0,0.50611515]
[1746716764228,0.002,99513.0,99512.0,0.50511515]
[1746716765630,0.002,99513.0,99512.0,0.50611515]
[1746716766037,0.002,99513.0,99512.0,0.50311515]
[1746716766336,0.002,99513.0,99512.0,0.50611515]
[1746716766932,0.002,99513.0,99512.0,0.50711515]
[1746716768233,0.2029486,99513.0,99512.0,0.50711515]
[1746716768440,0.2029486,99513.0,99512.0,0.45751515]
[1746716768732,0.2029486,99513.0,99512.0,0.44751515]
[1746716769132,0.1061,99513.0,99512.0,0.27951515]
[1746716769533,0.3070486,99513.0,99512.0,0.27951515]
[1746716769739,0.3070486,99513.0,99512.0,0.27998919]
[1746716770136,0.1061,99513.0,99512.0,0.27998919]
[1746716770325,0.1061,99513.0,99512.0,0.38894919]
[1746716770531,0.3070486,99513.0,99512.0,0.38894919]
[1746716771237,0.1061,99513.0,99512.0,0.38894919]
[1746716771538,0.3070486,99513.0,99512.0,0.38894919]
[1746716772127,0.3070486,99513.0,99512.0,0.18799859]
[1746716772335,0.3070486,99513.0,99512.0,0.13359859]
[1746716772642,0.6678486,99513.0,99512.0,0.1179698]
[1746716772835,0.3070486,99513.0,99512.0,0.1179698]
[1746716773144,1.0286486,99513.0,99512.0,0.0090098]
[1746716774148,1.6966486,99513.0,99512.0,0.0090098]
[1746716774344,0.2009748,99500.0,99499.0,0.10896]
[1746716774543,0.5617748,99500.0,99499.0,0.10896]
[1746716775535,0.6669748,99500.0,99499.0,0.10896]
[1746716775736,0.6689748,99500.0,99499.0,0.10896]
[1746716775939,1.1689748,99500.0,99499.0,0.10896]
[1746716776140,1.3359748,99500.0,99499.0,0.10896]
[1746716776636,1.3369748,99500.0,99499.0,0.10896]
[1746716777339,1.1689748,99500.0,99499.0,0.10896]
[1746716777640,1.2694788,99500.0,99499.0,0.10896]
[1746716778237,1.2684788,99500.0,99499.0,0.10896]
[1746716778438,1.2704788,99500.0,99499.0,0.10896]
[1746716778639,1.1699748,99500.0,99499.0,0.10896]
[1746716778831,1.1679748,99500.0,99499.0,0.3099368]
[1746716779036,1.1709748,99500.0,99499.0,0.3099368]
[1746716779236,1.3389748,99500.0,99499.0,0.3099368]
[1746716779731,1.3389748,99500.0,99499.0,0.10896]
[1746716779936,1.3389748,99500.0,99499.0,0.32519743]
[1746716780347,1.1679748,99500.0,99499.0,0.32519743]
[1746716780545,0.971,99500.0,99499.0,0.32519743]
[1746716780741,0.505,99500.0,99499.0,0.3409057]
[1746716780943,0.505,99500.0,99499.0,0.3905057]
[1746716781245,0.505,99500.0,99499.0,0.6104044]
[1746716781652,0.005,99500.0,99499.0,0.6204044]
[1746716781947,0.005,99500.0,99499.0,0.60514377]
[1746716782645,0.002,99500.0,99499.0,0.60514377]
[1746716783143,0.00135,99520.0,99499.0,0.75467097]
[1746716783441,0.00135,99520.0,99519.0,0.2009365]
[1746716783638,0.00135,99520.0,99519.0,0.21664347]
[1746716783835,0.12708837,99525.0,99523.0,0.2009284]
[1746716784041,0.12708837,99525.0,99523.0,0.32559537]
[1746716784432,0.12708837,99525.0,99523.0,0.33559537]
[1746716784833,0.12708837,99525.0,99523.0,0.43607036]
[1746716785054,0.12708837,99525.0,99523.0,0.45137219]
[1746716785346,0.12708837,99525.0,99523.0,0.62685384]